fUST/lending_fUST_20240902
["ID","MTS","AMOUNT","RATE_DAILY","PERIOD"]
[336966407,1725267044967,-929.38,0.00025479,2]
[336966408,1725267044978,-500.0,0.00025479,2]
[336966409,1725267044990,-844.73,0.00025479,2]
[336966410,1725267045000,-854.77,0.00025479,2]
[336966411,1725267045014,-792.7,0.00025479,2]
[336966412,1725267045024,-770.25,0.00025479,2]
[336966413,1725267045034,-1523.55,0.00025479,2]
[336966414,1725267045043,-500.0,0.00025479,2]
[336966415,1725267045055,-608.65,0.00025479,2]
[336966416,1725267045064,-500.0,0.00025479,2]
[336966417,1725267045075,-1201.41,0.00025479,2]
[336966418,1725267045084,-515.07,0.00025479,2]
[336966419,1725267045095,-500.0,0.00025479,2]
[336966420,1725267045108,-541.83,0.00025479,2]
[336966421,1725267045118,-5103.19,0.00025479,2]
[336966422,1725267045127,-1065.13,0.00025479,2]
[336966423,1725267045137,-500.0,0.00025479,2]
[336966424,1725267045146,-500.0,0.00025479,2]
[336966425,1725267045156,-1138.89,0.00025479,2]
[336966426,1725267045166,-1201.63,0.00025479,2]
[336966427,1725267045175,-886.61,0.00025479,2]
[336966428,1725267045185,-500.0,0.00025479,2]
[336966429,1725267045195,-500.0,0.00025479,2]
[336966430,1725267045204,-957.57,0.00025479,2]
[336966431,1725267045214,-1336.16,0.00025479,2]
[336966432,1725267045224,-576.23,0.00025479,2]
[336966433,1725267045234,-5695.37,0.00025479,2]
[336966434,1725267045244,-500.0,0.00025479,2]
[336966435,1725267045254,-500.0,0.00025479,2]
[336966436,1725267045263,-810.38,0.00025479,2]
[336966437,1725267045273,-1969.29,0.00025479,2]
[336966438,1725267045282,-260.04043322,0.00025479,2]
[336966439,1725267045291,-353.68500071,0.00025479,2]
[336966440,1725267045300,-500.0,0.00025479,2]
[336966441,1725267045310,-804.18,0.00025479,2]
[336966442,1725267045319,-287.59052558,0.00025479,2]
[336966443,1725267045329,-1102.1,0.00025479,2]
[336966444,1725267045338,-2360.98,0.00025479,2]
[336966445,1725267045348,-500.0,0.00025479,2]
[336966446,1725267045362,-500.0,0.00025479,2]
[336966449,1725267045372,-802.63,0.00025479,2]
[336966450,1725267045382,-1497.12,0.00025479,2]
[336966452,1725267045507,-500.0,0.00025479,2]
[336966453,1725267045517,-500.0,0.00025479,2]
[336966454,1725267045526,-923.16078325,0.000255,2]
[336966455,1725267045536,-1000.0,0.00025521,2]
[336966456,1725267045545,-500.0,0.00025543,2]
[336966457,1725267045554,-500.0,0.00025543,2]
[336966458,1725267045563,-830.70120024,0.00025585,2]
[336966459,1725267045573,-948.06395253,0.00025743,3]
[336966460,1725267045582,-531.88,0.00025753,2]
[336966461,1725267045592,-500.0,0.00025753,2]
[336966462,1725267045603,-680.82,0.00025753,2]
[336966463,1725267045612,-500.0,0.00025753,2]
[336966464,1725267045622,-500.0,0.00025753,2]
[336966465,1725267045631,-711.68,0.00025753,2]
[336966466,1725267045640,-500.0,0.00025753,2]
[336966468,1725267045651,-236.95349267,0.00025753,2]
[336966470,1725267045661,-500.0,0.00025753,2]
[336966472,1725267045670,-500.0,0.00025753,2]
[336966474,1725267045679,-500.0,0.00025753,2]
[336966476,1725267045688,-380.60827374,0.00025753,2]
[336966478,1725267045698,-500.0,0.00025753,2]
[336966480,1725267045707,-500.0,0.00025753,2]
[336966481,1725267045716,-500.0,0.00025753,2]
[336966483,1725267045725,-500.0,0.00025753,2]
[336966485,1725267045735,-500.0,0.00025753,2]
[336966487,1725267045745,-500.0,0.00025753,2]
[336966489,1725267045754,-500.0,0.00025753,2]
[336966491,1725267045764,-500.0,0.00025753,2]
[336966493,1725267045773,-2457.4,0.00025753,2]
[336966495,1725267045782,-500.0,0.00025753,2]
[336966497,1725267045792,-500.0,0.00025753,2]
[336966499,1725267045801,-500.0,0.00025753,2]
[336966501,1725267045811,-500.0,0.00025753,2]
[336966503,1725267045820,-815.27,0.00025753,2]
[336966505,1725267045829,-579.91,0.00025753,2]
[336966507,1725267045838,-500.0,0.00025753,2]
[336966509,1725267045848,-500.0,0.00025753,2]
[336966511,1725267045858,-629.73215734,0.00025753,2]
[336966512,1725267045867,-600.09,0.00025753,2]
[336966514,1725267045877,-500.0,0.00025753,2]
[336966515,1725267045887,-500.0,0.00025753,2]
[336966516,1725267045898,-662.29,0.00025753,2]
[336966517,1725267045907,-500.0,0.00025753,2]
[336966518,1725267045917,-500.0,0.00025753,2]
[336966519,1725267045926,-697.7,0.00025753,2]
[336966520,1725267045936,-500.0,0.00025753,2]
[336966521,1725267045946,-629.49,0.00025753,2]
[336966522,1725267045955,-500.0,0.00025753,2]
[336966523,1725267045965,-610.25,0.00025753,2]
[336966524,1725267045974,-701.42,0.00025753,2]
[336966525,1725267045984,-500.0,0.00025753,2]
[336966526,1725267045993,-792.9,0.00025753,2]
[336966527,1725267046003,-523.57,0.00025753,2]
[336966528,1725267046016,-500.0,0.00025753,2]
[336966529,1725267046026,-500.0,0.00025753,2]
[336966530,1725267046036,-500.0,0.00025753,2]
[336966531,1725267046046,-500.0,0.00025753,2]
[336966532,1725267046056,-500.0,0.00025753,2]
[336966533,1725267046065,-1513.52,0.00025753,2]
[336966534,1725267046074,-500.0,0.00025753,2]
[336966535,1725267046083,-935.27,0.00025753,2]
[336966536,1725267046093,-500.0,0.00025753,2]
[336966537,1725267046102,-500.0,0.00025753,2]
[336966538,1725267046111,-891.59,0.00025753,2]
[336966539,1725267046120,-1011.87,0.00025753,2]
[336966540,1725267046130,-1283.14,0.00025753,2]
[336966541,1725267046140,-918.3,0.00025753,2]
[336966542,1725267046149,-500.0,0.00025753,2]
[336966543,1725267046158,-633.39,0.00025753,2]
[336966544,1725267046167,-500.0,0.00025753,2]
[336966545,1725267046178,-500.0,0.00025753,2]
[336966546,1725267046188,-500.0,0.00025753,2]
[336966547,1725267046198,-500.0,0.00025753,2]
[336966548,1725267046207,-500.0,0.00025753,2]
[336966549,1725267046217,-1484.46,0.00025753,2]
[336966550,1725267046226,-1079.13,0.00025753,2]
[336966551,1725267046235,-547.76,0.00025753,2]
[336966552,1725267046244,-500.0,0.00025753,2]
[336966553,1725267046253,-8084.14,0.00025753,2]
[336966554,1725267046262,-1603.43,0.00025753,2]
[336966555,1725267046272,-634.17,0.00025753,2]
[336966556,1725267046282,-1110.72,0.00025753,2]
[336966557,1725267046291,-1109.92,0.00025753,2]
[336966558,1725267046300,-500.0,0.00025753,2]
[336966559,1725267046310,-1405.03,0.00025753,2]
[336966560,1725267046319,-971.8,0.00025753,2]
[336966561,1725267046329,-1944.57,0.00025753,2]
[336966562,1725267046338,-500.0,0.00025753,2]
[336966563,1725267046347,-500.0,0.00025753,2]
[336966564,1725267046357,-1179.73,0.00025753,2]
[336966565,1725267046365,-755.93,0.00025753,2]
[336966566,1725267046374,-750.28,0.00025753,2]
[336966567,1725267046383,-500.0,0.00025753,2]
[336966568,1725267046393,-500.0,0.00025753,2]
[336966569,1725267046403,-1726.57,0.00025753,2]
[336966570,1725267046412,-814.22,0.00025753,2]
[336966571,1725267046422,-1202.89,0.00025753,2]
[336966572,1725267046431,-500.0,0.00025753,2]
[336966573,1725267046440,-1090.08,0.00025753,2]
[336966574,1725267046449,-3667.63,0.00025753,2]
[336966575,1725267046458,-503.31,0.00025753,2]
[336966576,1725267046467,-985.76,0.00025753,2]
[336966577,1725267046476,-500.0,0.00025753,2]
[336966578,1725267046486,-750.22,0.00025753,2]
[336966579,1725267046495,-1228.46,0.00025753,2]
[336966580,1725267046505,-500.0,0.00025753,2]
[336966581,1725267046515,-814.48,0.00025753,2]
[336966582,1725267046524,-1034.18,0.00025753,2]
[336966583,1725267046534,-929.38,0.00025753,2]
[336966584,1725267046544,-500.0,0.00025753,2]
[336966585,1725267046555,-844.73,0.00025753,2]
[336966586,1725267046564,-854.77,0.00025753,2]
[336966587,1725267046574,-792.7,0.00025753,2]
[336966588,1725267046583,-770.25,0.00025753,2]
[336966589,1725267046592,-151.0,0.00025753,7]
[336966590,1725267046601,-1523.55,0.00025753,2]
[336966591,1725267046611,-500.0,0.00025753,2]
[336966592,1725267046622,-608.65,0.00025753,2]
[336966593,1725267046634,-500.0,0.00025753,2]
[336966594,1725267046644,-1201.41,0.00025753,2]
[336966595,1725267046657,-515.07,0.00025753,2]
[336966596,1725267046666,-500.0,0.00025753,2]
[336966597,1725267046675,-541.83,0.00025753,2]
[336966598,1725267046685,-5103.19,0.00025753,2]
[336966599,1725267046695,-1065.13,0.00025753,2]
[336966600,1725267046705,-500.0,0.00025753,2]
[336966601,1725267046714,-500.0,0.00025753,2]
[336966602,1725267046724,-1138.89,0.00025753,2]
[336966603,1725267046733,-1201.63,0.00025753,2]
[336966604,1725267046743,-886.61,0.00025753,2]
[336966605,1725267046752,-500.0,0.00025753,2]
[336966606,1725267046761,-500.0,0.00025753,2]
[336966607,1725267046771,-957.57,0.00025753,2]
[336966608,1725267046780,-1336.16,0.00025753,2]
[336966609,1725267046791,-576.23,0.00025753,2]
[336966610,1725267046800,-5695.37,0.00025753,2]
[336966611,1725267046809,-500.0,0.00025753,2]
[336966612,1725267046820,-500.0,0.00025753,2]
[336966613,1725267046829,-810.38,0.00025753,2]
[336966614,1725267046838,-1969.29,0.00025753,2]
[336966615,1725267046847,-250.990228,0.00025753,7]
[336966616,1725267046858,-250.990228,0.00025753,7]
[336966617,1725267046867,-500.0,0.00025753,2]
[336966618,1725267046876,-804.18,0.00025753,2]
[336966619,1725267046886,-1102.1,0.00025753,2]
[336966620,1725267046895,-2360.98,0.00025753,2]
[336966621,1725267046904,-500.0,0.00025753,2]
[336966622,1725267046914,-500.0,0.00025753,2]
[336966623,1725267046924,-802.63,0.00025753,2]
[336966624,1725267046933,-1497.12,0.00025753,2]
[336966625,1725267046942,-500.0,0.00025753,2]
[336966626,1725267046951,-500.0,0.00025753,2]
[336966627,1725267046961,-150.112233,0.000258,10]
[336966628,1725267046970,-1000.0,0.00025821,2]
[336966629,1725267046979,-159.0,0.0002589,2]
[336966630,1725267046988,-1207.85078139,0.00025893,2]
[336966631,1725267046998,-830.70120024,0.00025927,2]
[336966632,1725267047007,-150.112233,0.00026,6]
[336966633,1725267047020,-1000.0,0.00026,2]
[336966634,1725267047030,-316.02131751,0.00026017,3]
[336966635,1725267047039,-531.88,0.00026027,2]
[336966636,1725267047050,-500.0,0.00026027,2]
[336966637,1725267047059,-680.82,0.00026027,2]
[336966638,1725267047068,-500.0,0.00026027,2]
[336966639,1725267047077,-500.0,0.00026027,2]
[336966640,1725267047088,-711.68,0.00026027,2]
[336966641,1725267047098,-326.97637173,0.00026027,2]
[336966642,1725267047109,-500.0,0.00026027,2]
[336966643,1725267047118,-500.0,0.00026027,2]
[336966644,1725267047127,-500.0,0.00026027,2]
[336966645,1725267047137,-500.0,0.00026027,2]
[336966646,1725267047147,-500.0,0.00026027,2]
[336966647,1725267047156,-500.0,0.00026027,2]
[336966648,1725267047166,-500.0,0.00026027,2]
[336966649,1725267047175,-500.0,0.00026027,2]
[336966650,1725267047185,-500.0,0.00026027,2]
[336966651,1725267047194,-500.0,0.00026027,2]
[336966652,1725267047203,-500.0,0.00026027,2]
[336966653,1725267047213,-2457.4,0.00026027,2]
[336966654,1725267047222,-500.0,0.00026027,2]
[336966655,1725267047231,-500.0,0.00026027,2]
[336966656,1725267047241,-500.0,0.00026027,2]
[336966657,1725267047251,-621.66079684,0.00026027,2]
[336966658,1725267047262,-815.27,0.00026027,2]
[336966659,1725267047271,-579.91,0.00026027,2]
[336966660,1725267047283,-500.0,0.00026027,2]
[336966661,1725267047293,-500.0,0.00026027,2]
[336966662,1725267047303,-600.09,0.00026027,2]
[336966663,1725267047314,-151.0,0.00026027,7]
[336966664,1725267047325,-194.942982,0.00026027,7]
[336966665,1725267047336,-289.52773224,0.00026027,2]
[336966666,1725267047346,-500.0,0.00026027,2]
[336966667,1725267047356,-662.29,0.00026027,2]
[336966668,1725267047366,-500.0,0.00026027,2]
[336966669,1725267047376,-500.0,0.00026027,2]
[336966670,1725267047387,-697.7,0.00026027,2]
[336966671,1725267047397,-500.0,0.00026027,2]
[336966672,1725267047407,-629.49,0.00026027,2]
[336966673,1725267047417,-500.0,0.00026027,2]
[336966674,1725267047428,-610.25,0.00026027,2]
[336966675,1725267047438,-701.42,0.00026027,2]
[336966676,1725267047448,-500.0,0.00026027,2]
[336966677,1725267047458,-151.0,0.00026027,7]
[336966678,1725267047469,-792.9,0.00026027,2]
[336966679,1725267047480,-523.57,0.00026027,2]
[336966680,1725267047489,-500.0,0.00026027,2]
[336966681,1725267047499,-500.0,0.00026027,2]
[336966682,1725267047509,-500.0,0.00026027,2]
[336966683,1725267047519,-500.0,0.00026027,2]
[336966684,1725267047530,-534.73182457,0.00026027,2]
[336966685,1725267047541,-1513.52,0.00026027,2]
[336966686,1725267047551,-500.0,0.00026027,2]
[336966687,1725267047561,-935.27,0.00026027,2]
[336966688,1725267047570,-567.437962,0.00026027,2]
[336966689,1725267047581,-500.0,0.00026027,2]
[336966690,1725267047593,-891.59,0.00026027,2]
[336966691,1725267047604,-1011.87,0.00026027,2]
[336966692,1725267047616,-1283.14,0.00026027,2]
[336966693,1725267047627,-918.3,0.00026027,2]
[336966694,1725267047638,-500.0,0.00026027,2]
[336966695,1725267047650,-633.39,0.00026027,2]
[336966696,1725267047664,-500.0,0.00026027,2]
[336966697,1725267047674,-500.0,0.00026027,2]
[336966698,1725267047684,-500.0,0.00026027,2]
[336966699,1725267047694,-500.0,0.00026027,2]
[336966700,1725267047703,-500.0,0.00026027,2]
[336966701,1725267047712,-1484.46,0.00026027,2]
[336966702,1725267047722,-1079.13,0.00026027,2]
[336966703,1725267047732,-547.76,0.00026027,2]
[336966704,1725267047741,-500.0,0.00026027,2]
[336966705,1725267047750,-8084.14,0.00026027,2]
[336966706,1725267047759,-1603.43,0.00026027,2]
[336966707,1725267047769,-634.17,0.00026027,2]
[336966708,1725267047779,-1110.72,0.00026027,2]
[336966709,1725267047789,-1109.92,0.00026027,2]
[336966710,1725267047798,-500.0,0.00026027,2]
[336966711,1725267047808,-1405.03,0.00026027,2]
[336966712,1725267047817,-971.8,0.00026027,2]
[336966713,1725267047826,-1944.57,0.00026027,2]
[336966714,1725267047836,-500.0,0.00026027,2]
[336966715,1725267047845,-500.0,0.00026027,2]
[336966716,1725267047856,-1179.73,0.00026027,2]
[336966717,1725267047865,-755.93,0.00026027,2]
[336966718,1725267047874,-750.28,0.00026027,2]
[336966719,1725267047885,-500.0,0.00026027,2]
[336966720,1725267047894,-1726.57,0.00026027,2]
[336966721,1725267047904,-500.0,0.00026027,2]
[336966722,1725267047914,-814.22,0.00026027,2]
[336966723,1725267047923,-1202.89,0.00026027,2]
[336966724,1725267047935,-500.0,0.00026027,2]
[336966725,1725267047944,-1090.08,0.00026027,2]
[336966726,1725267047954,-3667.63,0.00026027,2]
[336966727,1725267047964,-503.31,0.00026027,2]
[336966728,1725267047975,-985.76,0.00026027,2]
[336966729,1725267047986,-500.0,0.00026027,2]
[336966730,1725267047996,-750.22,0.00026027,2]
[336966731,1725267048008,-1228.46,0.00026027,2]
[336966732,1725267048020,-500.0,0.00026027,2]
[336966733,1725267048030,-814.48,0.00026027,2]
[336966734,1725267048040,-1034.18,0.00026027,2]
[336966735,1725267048049,-929.38,0.00026027,2]
[336966736,1725267048059,-500.0,0.00026027,2]
[336966737,1725267048068,-844.73,0.00026027,2]
[336966738,1725267048195,-854.77,0.00026027,2]
[336966739,1725267048206,-792.7,0.00026027,2]
[336966740,1725267048216,-770.25,0.00026027,2]
[336966741,1725267048226,-1523.55,0.00026027,2]
[336966742,1725267048236,-500.0,0.00026027,2]
[336966743,1725267048246,-608.65,0.00026027,2]
[336966744,1725267048256,-500.0,0.00026027,2]
[336966745,1725267048265,-1201.41,0.00026027,2]
[336966746,1725267048275,-515.07,0.00026027,2]
[336966747,1725267048285,-500.0,0.00026027,2]
[336966748,1725267048295,-541.83,0.00026027,2]
[336966749,1725267048305,-5103.19,0.00026027,2]
[336966750,1725267048314,-1065.13,0.00026027,2]
[336966751,1725267048324,-500.0,0.00026027,2]
[336966752,1725267048333,-500.0,0.00026027,2]
[336966753,1725267048344,-1138.89,0.00026027,2]
[336966754,1725267048354,-1201.63,0.00026027,2]
[336966755,1725267048365,-886.61,0.00026027,2]
[336966756,1725267048374,-500.0,0.00026027,2]
[336966757,1725267048383,-500.0,0.00026027,2]
[336966758,1725267048392,-957.57,0.00026027,2]
[336966759,1725267048402,-1336.16,0.00026027,2]
[336966760,1725267048412,-576.23,0.00026027,2]
[336966761,1725267048421,-5695.37,0.00026027,2]
[336966762,1725267048431,-500.0,0.00026027,2]
[336966763,1725267048440,-500.0,0.00026027,2]
[336966764,1725267048450,-810.38,0.00026027,2]
[336966765,1725267048460,-1969.29,0.00026027,2]
[336966766,1725267048471,-500.0,0.00026027,2]
[336966767,1725267048480,-804.18,0.00026027,2]
[336966768,1725267048489,-1102.1,0.00026027,2]
[336966769,1725267048499,-2360.98,0.00026027,2]
[336966770,1725267048508,-500.0,0.00026027,2]
[336966771,1725267048518,-500.0,0.00026027,2]
[336966772,1725267048528,-802.63,0.00026027,2]
[336966773,1725267048538,-1497.12,0.00026027,2]
[336966774,1725267048548,-500.0,0.00026027,2]
[336966775,1725267048559,-500.0,0.00026027,2]
[336966776,1725267048569,-30000.0,0.00026044,2]
[336966777,1725267048579,-250.990228,0.00026044,7]
[336966778,1725267048589,-250.990228,0.00026044,7]
[336966779,1725267048599,-2319.6,0.000261,14]
[336966780,1725267048610,-1875.44,0.000261,7]
[336966781,1725267048619,-1176.78,0.000261,14]
[336966782,1725267048628,-150.112233,0.000261,5]
[336966783,1725267048638,-1500.0,0.00026119,2]
[336966784,1725267048648,-151.0,0.00026119,7]
[336966785,1725267048658,-500.0,0.00026164,2]
[336966786,1725267048668,-500.0,0.00026164,2]
[336966787,1725267048678,-500.0,0.00026301,2]
[336966788,1725267048688,-500.0,0.00026301,2]
[336966789,1725267048697,-531.88,0.00026301,2]
[336966790,1725267048707,-500.0,0.00026301,2]
[336966791,1725267048717,-680.82,0.00026301,2]
[336966792,1725267048727,-500.0,0.00026301,2]
[336966793,1725267048738,-500.0,0.00026301,2]
[336966794,1725267048748,-711.68,0.00026301,2]
[336966795,1725267048757,-500.0,0.00026301,2]
[336966796,1725267048767,-500.0,0.00026301,2]
[336966797,1725267048776,-500.0,0.00026301,2]
[336966798,1725267048786,-500.0,0.00026301,2]
[336966799,1725267048796,-500.0,0.00026301,2]
[336966800,1725267048805,-500.0,0.00026301,2]
[336966801,1725267048815,-500.0,0.00026301,2]
[336966802,1725267048824,-500.0,0.00026301,2]
[336966803,1725267048834,-500.0,0.00026301,2]
[336966804,1725267048844,-500.0,0.00026301,2]
[336966805,1725267048856,-306.7689583,0.00026301,2]
[336966806,1725267048866,-2457.4,0.00026301,2]
[336966807,1725267048876,-500.0,0.00026301,2]
[336966808,1725267048886,-500.0,0.00026301,2]
[336966809,1725267048896,-815.27,0.00026301,2]
[336966810,1725267048906,-579.91,0.00026301,2]
[336966811,1725267048916,-500.0,0.00026301,2]
[336966812,1725267048925,-500.0,0.00026301,2]
[336966813,1725267048934,-600.09,0.00026301,2]
[336966814,1725267048944,-500.0,0.00026301,2]
[336966815,1725267048954,-662.29,0.00026301,2]
[336966816,1725267048963,-158.45324469,0.00026301,2]
[336966817,1725267048973,-500.0,0.00026301,2]
[336966818,1725267048983,-697.7,0.00026301,2]
[336966819,1725267048993,-460.58161398,0.00026301,2]
[336966820,1725267049002,-629.49,0.00026301,2]
[336966821,1725267049015,-500.0,0.00026301,2]
[336966822,1725267049025,-610.25,0.00026301,2]
[336966823,1725267049035,-701.42,0.00026301,2]
[336966824,1725267049046,-500.0,0.00026301,2]
[336966825,1725267049058,-792.9,0.00026301,2]
[336966826,1725267049069,-523.57,0.00026301,2]
[336966827,1725267049078,-500.0,0.00026301,2]
[336966828,1725267049087,-500.0,0.00026301,2]
[336966829,1725267049098,-500.0,0.00026301,2]
[336966830,1725267049112,-500.0,0.00026301,2]
[336966831,1725267049121,-1513.52,0.00026301,2]
[336966832,1725267049130,-500.0,0.00026301,2]
[336966833,1725267049140,-935.27,0.00026301,2]
[336966834,1725267049150,-500.0,0.00026301,2]
[336966835,1725267049159,-891.59,0.00026301,2]
[336966836,1725267049168,-1011.87,0.00026301,2]
[336966837,1725267049178,-1283.14,0.00026301,2]
[336966838,1725267049188,-918.3,0.00026301,2]
[336966839,1725267049198,-500.0,0.00026301,2]
[336966840,1725267049208,-633.39,0.00026301,2]
[336966841,1725267049218,-500.0,0.00026301,2]
[336966842,1725267049228,-500.0,0.00026301,2]
[336966843,1725267049237,-500.0,0.00026301,2]
[336966844,1725267049246,-500.0,0.00026301,2]
[336966845,1725267049256,-500.0,0.00026301,2]
[336966846,1725267049266,-1484.46,0.00026301,2]
[336966847,1725267049276,-1079.13,0.00026301,2]
[336966848,1725267049286,-547.76,0.00026301,2]
[336966849,1725267049296,-500.0,0.00026301,2]
[336966850,1725267049306,-8084.14,0.00026301,2]
[336966851,1725267049316,-1603.43,0.00026301,2]
[336966852,1725267049327,-634.17,0.00026301,2]
[336966853,1725267049336,-1110.72,0.00026301,2]
[336966854,1725267049346,-1092.59622002,0.00026301,2]
[336966855,1725267049429,-17.32377998,0.00026301,2]
[336966856,1725267049439,-31.45777296,0.00026301,2]
[336966857,1725267049545,-380.95082589,0.00026301,2]
[336966858,1725267049558,-87.59140115,0.00026301,2]
[336966859,1725267049567,-1405.03,0.00026301,2]
[336966860,1725267049576,-971.8,0.00026301,2]
[336966861,1725267049585,-1944.57,0.00026301,2]
[336966862,1725267049595,-500.0,0.00026301,2]
[336966863,1725267049605,-500.0,0.00026301,2]
[336966864,1725267049614,-1179.73,0.00026301,2]
[336966865,1725267049624,-755.93,0.00026301,2]
[336966866,1725267049634,-750.28,0.00026301,2]
[336966867,1725267049644,-500.0,0.00026301,2]
[336966868,1725267049653,-1726.57,0.00026301,2]
[336966869,1725267049663,-500.0,0.00026301,2]
[336966870,1725267049672,-814.22,0.00026301,2]
[336966871,1725267049682,-1202.89,0.00026301,2]
[336966872,1725267049691,-500.0,0.00026301,2]
[336966873,1725267049701,-1090.08,0.00026301,2]
[336966874,1725267049710,-3667.63,0.00026301,2]
[336966875,1725267049720,-503.31,0.00026301,2]
[336966876,1725267049729,-985.76,0.00026301,2]
[336966877,1725267049738,-500.0,0.00026301,2]
[336966878,1725267049748,-750.22,0.00026301,2]
[336966879,1725267049757,-1228.46,0.00026301,2]
[336966880,1725267049766,-564.86674617,0.00026301,2]
[336966881,1725267049775,-814.48,0.00026301,2]
[336966882,1725267049785,-1034.18,0.00026301,2]
[336966883,1725267049794,-929.38,0.00026301,2]
[336966884,1725267049804,-500.0,0.00026301,2]
[336966885,1725267049814,-844.73,0.00026301,2]
[336966886,1725267049823,-854.77,0.00026301,2]
[336966887,1725267049832,-792.7,0.00026301,2]
[336966888,1725267049842,-770.25,0.00026301,2]
[336966889,1725267049852,-1523.55,0.00026301,2]
[336966890,1725267049865,-500.0,0.00026301,2]
[336966891,1725267049875,-608.65,0.00026301,2]
[336966892,1725267049884,-500.0,0.00026301,2]
[336966893,1725267049894,-1201.41,0.00026301,2]
[336966894,1725267049904,-515.07,0.00026301,2]
[336966895,1725267049914,-500.0,0.00026301,2]
[336966896,1725267049924,-541.83,0.00026301,2]
[336966897,1725267049934,-5103.19,0.00026301,2]
[336966898,1725267049943,-1065.13,0.00026301,2]
[336966899,1725267049956,-500.0,0.00026301,2]
[336966900,1725267049967,-500.0,0.00026301,2]
[336966901,1725267049977,-1138.89,0.00026301,2]
[336966902,1725267049986,-1201.63,0.00026301,2]
[336966903,1725267049996,-886.61,0.00026301,2]
[336966904,1725267050005,-500.0,0.00026301,2]
[336966905,1725267050019,-343.53873727,0.00026301,2]
[336966906,1725267050028,-957.57,0.00026301,2]
[336966907,1725267050038,-1336.16,0.00026301,2]
[336966908,1725267050047,-576.23,0.00026301,2]
[336966909,1725267050056,-5695.37,0.00026301,2]
[336966910,1725267050066,-500.0,0.00026301,2]
[336966911,1725267050075,-500.0,0.00026301,2]
[336966912,1725267050084,-810.38,0.00026301,2]
[336966913,1725267050093,-1969.29,0.00026301,2]
[336966914,1725267050103,-500.0,0.00026301,2]
[336966915,1725267050115,-804.18,0.00026301,2]
[336966916,1725267050124,-1102.1,0.00026301,2]
[336966917,1725267050134,-2360.98,0.00026301,2]
[336966918,1725267050143,-500.0,0.00026301,2]
[336966919,1725267050152,-500.0,0.00026301,2]
[336966920,1725267050161,-802.63,0.00026301,2]
[336966921,1725267050170,-1497.12,0.00026301,2]
[336966922,1725267050180,-500.0,0.00026301,2]
[336966923,1725267050189,-500.0,0.00026301,2]
[336966924,1725267050198,-1916.790921,0.00026326,2]
[336966925,1725267050208,-155.569969,0.00026326,2]
[336966926,1725267050217,-2330.295019,0.00026326,2]
[336966927,1725267050226,-500.0,0.00026376,2]
[336966928,1725267050235,-4552.22,0.000264,14]
[336966929,1725267050245,-1500.0,0.00026419,2]
[336966930,1725267050255,-500.0,0.00026438,2]
[336966931,1725267050264,-500.0,0.00026438,2]
[336966932,1725267050274,-7458.94652043,0.0002649,2]